fUST/lending_fUST_20250615
["ID","MTS","AMOUNT","RATE_DAILY","PERIOD"]
[365820770,1749937836953,-460.0,0.00022191,4]
[365820771,1749937836962,-954.63,0.00022191,4]
[365820772,1749937836972,-320.0,0.00022191,4]
[365820773,1749937836981,-460.0,0.00022191,4]
[365820774,1749937836991,-282.03436861,0.00022191,4]
[365820775,1749937837001,-246.70651187,0.00022191,4]
[365820776,1749937837011,-460.0,0.00022191,4]
[365820777,1749937837020,-460.0,0.00022191,4]
[365820778,1749937837029,-749.8,0.00022191,4]
[365820779,1749937837038,-460.0,0.00022191,4]
[365820780,1749937837048,-310.0,0.00022191,4]
[365820781,1749937837057,-400.0,0.00022191,4]
[365820782,1749937837066,-3389.95,0.00022191,4]
[365820783,1749937837076,-460.0,0.00022191,4]
[365820784,1749937837086,-460.0,0.00022191,4]
[365820785,1749937837095,-400.0,0.00022191,4]
[365820786,1749937837104,-400.0,0.00022191,4]
[365820787,1749937837113,-460.0,0.00022191,4]
[365820788,1749937837123,-400.0,0.00022191,4]
[365820789,1749937837132,-1017.16,0.00022191,4]
[365820790,1749937837141,-460.0,0.00022191,4]
[365820791,1749937837151,-3190.39,0.00022191,4]
[365820792,1749937837160,-502.43,0.00022191,4]
[365820793,1749937837169,-460.0,0.00022191,4]
[365820794,1749937837179,-654.17,0.00022191,4]
[365820795,1749937837189,-391.72059834,0.00022191,4]
[365820796,1749937837198,-2615.6,0.00022191,4]
[365820797,1749937837208,-1198.46,0.00022191,4]
[365820798,1749937837222,-901.06,0.00022191,4]
[365820799,1749937837231,-460.0,0.00022191,4]
[365820800,1749937837241,-460.0,0.00022191,4]
[365820801,1749937837250,-460.0,0.00022191,4]
[365820802,1749937837260,-460.0,0.00022191,2]
[365820803,1749937837269,-460.0,0.00022191,4]
[365820804,1749937837279,-460.0,0.00022191,4]
[365820805,1749937837288,-460.0,0.00022191,4]
[365820806,1749937837297,-460.0,0.00022191,4]
[365820807,1749937837307,-420.0,0.00022191,4]
[365820808,1749937837317,-3482.98,0.00022191,4]
[365820809,1749937837328,-1340.88,0.00022191,4]
[365820810,1749937837337,-400.0,0.00022191,4]
[365820811,1749937837346,-568.2,0.00022191,4]
[365820812,1749937837356,-400.0,0.00022191,4]
[365820813,1749937837366,-575.91709914,0.00022191,4]
[365820814,1749937837376,-460.0,0.00022191,4]
[365820815,1749937837386,-3518.92,0.00022191,4]
[365820816,1749937837396,-460.0,0.00022191,4]
[365820817,1749937837406,-460.0,0.00022191,4]
[365820818,1749937837416,-460.0,0.00022191,4]
[365820819,1749937837425,-460.0,0.00022191,4]
[365820820,1749937837435,-862.79,0.00022191,4]
[365820821,1749937837444,-1104.45003911,0.00022191,4]
[365820822,1749937837581,-2508.23760735,0.00022191,4]
[365820845,1749937838268,-460.0,0.00021917,4]
[365820846,1749937838278,-460.0,0.00021917,4]
[365820847,1749937838287,-86.66235354,0.00022191,4]
[365820848,1749937838297,-460.0,0.00022191,4]
[365820849,1749937838306,-460.0,0.00022191,4]
[365820850,1749937838315,-360.0,0.00022191,4]
[365820851,1749937838325,-400.0,0.00022191,4]
[365820852,1749937838334,-410.0,0.00022191,4]
[365820853,1749937838343,-460.0,0.00022191,4]
[365820854,1749937838352,-337.75405117,0.00022191,4]
[365820855,1749937838371,-1230.90594883,0.00022191,4]
[365820856,1749937838381,-265.99,0.00022191,4]
[365820857,1749937838391,-460.0,0.00022191,4]
[365820858,1749937838401,-708.11,0.00022191,4]
[365820859,1749937838410,-160.0,0.00022191,4]
[365820860,1749937838419,-460.0,0.00022191,4]
[365820861,1749937838432,-460.0,0.00022191,4]
[365820862,1749937838442,-620.85,0.00022191,4]
[365820863,1749937838451,-460.0,0.00022191,4]
[365820864,1749937838461,-2385.13,0.00022191,4]
[365820865,1749937838470,-173.96334616,0.00022191,4]
[365820866,1749937838479,-460.0,0.00022191,4]
[365820867,1749937838488,-460.0,0.00022191,4]
[365820868,1749937838498,-568.93,0.00022191,4]
[365820869,1749937838507,-2377.54,0.00022191,4]
[365820870,1749937838516,-552.1,0.00022191,4]
[365820871,1749937838526,-460.0,0.00022191,4]
[365820872,1749937838535,-460.0,0.00022191,4]
[365820873,1749937838545,-1056.48400829,0.0002221,6]
[365820874,1749937838554,-500.0,0.0002225,2]
[365820875,1749937838565,-1056.48400829,0.00022314,7]
[365820876,1749937838574,-1056.48400829,0.00022417,7]
[365820877,1749937838584,-460.0,0.00022465,4]
[365820878,1749937838594,-460.0,0.00022465,4]
[365820879,1749937838603,-390.80421666,0.00022465,4]
[365820880,1749937838612,-460.0,0.00022465,4]
[365820881,1749937838623,-460.0,0.00022465,4]
[365820882,1749937838632,-460.0,0.00022465,4]
[365820883,1749937838642,-460.0,0.00022465,4]
[365820884,1749937838661,-460.0,0.00022465,4]
[365820885,1749937838683,-225.51378918,0.00022465,4]
[365820886,1749937838697,-460.0,0.00022465,4]
[365820887,1749937838707,-460.0,0.00022465,4]
[365820888,1749937838716,-460.0,0.00022465,4]
[365820889,1749937838726,-460.0,0.00022465,4]
[365820890,1749937838734,-460.0,0.00022465,4]
[365820891,1749937838744,-460.0,0.00022465,4]
[365820892,1749937838753,-430.0,0.00022465,4]
[365820893,1749937838762,-460.0,0.00022465,4]
[365820894,1749937838771,-460.0,0.00022465,4]
[365820895,1749937838781,-539.340788,0.00022465,4]
[365820896,1749937838790,-460.0,0.00022465,4]
[365820897,1749937838799,-440.0,0.00022465,4]
[365820898,1749937838808,-230.0,0.00022465,4]
[365820899,1749937838817,-1319.68,0.00022465,4]
[365820900,1749937838827,-460.0,0.00022465,4]
[365820901,1749937838835,-539.15,0.00022465,4]
[365820902,1749937838845,-460.0,0.00022465,4]
[365820903,1749937838854,-460.0,0.00022465,4]
[365820904,1749937838863,-460.0,0.00022465,4]
[365820905,1749937838872,-460.0,0.00022465,4]
[365820906,1749937838881,-460.0,0.00022465,4]
[365820907,1749937838890,-460.0,0.00022465,4]
[365820908,1749937838899,-1021.97,0.00022465,4]
[365820909,1749937838908,-400.0,0.00022465,4]
[365820910,1749937838917,-460.0,0.00022465,4]
[365820911,1749937838926,-2967.96,0.00022465,4]
[365820912,1749937838936,-460.0,0.00022465,4]
[365820913,1749937838945,-1391.78,0.00022465,4]
[365820914,1749937838955,-1078.63,0.00022465,4]
[365820915,1749937838964,-231.40210787,0.00022465,4]
[365820916,1749937838974,-460.0,0.00022465,4]
[365820917,1749937838983,-440.0,0.00022465,4]
[365820918,1749937838992,-688.21,0.00022465,4]
[365820919,1749937839001,-460.0,0.00022465,4]
[365820920,1749937839010,-460.0,0.00022465,4]
[365820921,1749937839019,-380.0,0.00022465,4]
[365820922,1749937839028,-460.0,0.00022465,4]
[365820923,1749937839037,-460.0,0.00022465,4]
[365820924,1749937839046,-1121.45,0.00022465,4]
[365820925,1749937839058,-1079.19,0.00022465,4]
[365820926,1749937839067,-594.39,0.00022465,4]
[365820927,1749937839077,-869.24,0.00022465,4]
[365820928,1749937839086,-460.0,0.00022465,4]
[365820929,1749937839095,-460.0,0.00022465,4]
[365820930,1749937839104,-954.63,0.00022465,4]
[365820931,1749937839113,-440.0,0.00022465,4]
[365820932,1749937839122,-460.0,0.00022465,4]
[365820933,1749937839131,-460.0,0.00022465,4]
[365820934,1749937839141,-749.8,0.00022465,4]
[365820935,1749937839150,-460.0,0.00022465,4]
[365820936,1749937839159,-3389.95,0.00022465,4]
[365820937,1749937839168,-460.0,0.00022465,4]
[365820938,1749937839177,-460.0,0.00022465,4]
[365820939,1749937839186,-460.0,0.00022465,4]
[365820940,1749937839196,-1017.16,0.00022465,4]
[365820941,1749937839205,-460.0,0.00022465,4]
[365820942,1749937839213,-3190.39,0.00022465,4]
[365820943,1749937839224,-502.43,0.00022465,4]
[365820944,1749937839237,-400.0,0.00022465,4]
[365820945,1749937839251,-654.17,0.00022465,4]
[365820946,1749937839264,-2615.6,0.00022465,4]
[365820947,1749937839276,-1198.46,0.00022465,4]
[365820948,1749937839287,-901.06,0.00022465,4]
[365820949,1749937839300,-460.0,0.00022465,4]
[365820950,1749937839312,-460.0,0.00022465,4]
[365820951,1749937839325,-400.0,0.00022465,4]
[365820952,1749937839337,-460.0,0.00022465,2]
[365820953,1749937839350,-460.0,0.00022465,4]
[365820954,1749937839362,-460.0,0.00022465,4]
[365820955,1749937839375,-460.0,0.00022465,4]
[365820956,1749937839387,-3482.98,0.00022465,4]
[365820957,1749937839400,-1340.88,0.00022465,4]
[365820958,1749937839412,-568.2,0.00022465,4]
[365820959,1749937839424,-460.0,0.00022465,4]
[365820960,1749937839436,-3518.92,0.00022465,4]
[365820961,1749937839447,-460.0,0.00022465,4]
[365820962,1749937839459,-460.0,0.00022465,4]
[365820963,1749937839472,-370.0,0.00022465,4]
[365820964,1749937839483,-460.0,0.00022465,4]
[365820965,1749937839496,-862.79,0.00022465,4]
[365820966,1749937839506,-3699.35,0.00022465,4]
[365820967,1749937839517,-460.0,0.00022465,4]
[365820968,1749937839530,-460.0,0.00022465,4]
[365820969,1749937839541,-460.0,0.00022465,4]
[365820970,1749937839552,-1568.66,0.00022465,4]
[365820971,1749937839564,-460.0,0.00022465,4]
[365820972,1749937839577,-708.11,0.00022465,4]
[365820973,1749937839589,-460.0,0.00022465,4]
[365820974,1749937839602,-460.0,0.00022465,4]
[365820975,1749937839616,-620.85,0.00022465,4]
[365820976,1749937839629,-460.0,0.00022465,4]
[365820977,1749937839641,-2385.13,0.00022465,4]
[365820978,1749937839655,-460.0,0.00022465,4]
[365820979,1749937839666,-460.0,0.00022465,4]
[365820980,1749937839676,-568.93,0.00022465,4]
[365820981,1749937839687,-2377.54,0.00022465,4]
[365820982,1749937839701,-552.1,0.00022465,4]
[365820983,1749937839715,-460.0,0.00022465,4]
[365820984,1749937839727,-1056.48400829,0.00022521,7]
[365820985,1749937839737,-198.0,0.00022547,4]
[365820986,1749937839748,-151.0,0.00022547,4]
[365820987,1749937839759,-151.0,0.00022547,4]
[365820989,1749937839770,-198.0,0.00022547,4]
[365820991,1749937839783,-151.0,0.00022547,4]
[365820993,1749937839793,-151.0,0.00022547,4]
[365820994,1749937839803,-151.0,0.00022547,4]
[365820995,1749937839815,-1558.04603631,0.00022572,2]
[365820996,1749937839826,-151.0,0.00022574,4]
[365820997,1749937839837,-232.9049283,0.00022582,2]
[365820998,1749937839848,-425.09696969,0.00022598,2]
[365820999,1749937839860,-229.82479369,0.00022616,2]
[365821000,1749937839871,-160.0,0.00022616,2]
[365821001,1749937839884,-12533.30537164,0.00022616,2]
[365821002,1749937839896,-160.0,0.00022616,2]
[365821003,1749937839907,-160.0,0.00022616,2]
[365821004,1749937839919,-160.0,0.00022616,2]
[365821005,1749937839930,-835.41710878,0.00022616,2]
[365821006,1749937839943,-1056.48400829,0.00022624,7]
[365821007,1749937839954,-1000.0,0.00022721,2]
[365821008,1749937839965,-500.0,0.00022721,2]
[365821009,1749937839976,-5000.0,0.00022726,2]
[365821010,1749937839988,-500.0,0.00022726,2]
[365821011,1749937839999,-1688.0,0.00022726,2]
[365821012,1749937840010,-500.0,0.00022726,2]
[365821013,1749937840020,-500.0,0.00022726,2]
[365821014,1749937840032,-500.0,0.00022726,2]
[365821015,1749937840042,-500.0,0.00022726,2]
[365821016,1749937840053,-500.0,0.00022726,2]
[365821017,1749937840064,-207.4,0.00022726,2]
[365821020,1749937840075,-500.0,0.00022726,2]
[365821021,1749937840086,-500.0,0.00022726,2]
[365821022,1749937840097,-500.0,0.00022726,2]
[365821023,1749937840107,-500.0,0.00022726,2]
[365821024,1749937840118,-500.0,0.00022726,2]
[365821025,1749937840129,-500.0,0.00022726,2]
[365821026,1749937840140,-500.0,0.00022726,2]
[365821027,1749937840151,-500.0,0.00022726,2]
[365821028,1749937840162,-500.0,0.00022726,2]
[365821029,1749937840173,-1056.48400829,0.00022728,7]
[365821030,1749937840183,-460.0,0.00022739,4]
[365821031,1749937840194,-460.0,0.00022739,4]
[365821032,1749937840205,-460.0,0.00022739,4]
[365821033,1749937840217,-460.0,0.00022739,4]
[365821034,1749937840227,-460.0,0.00022739,4]
[365821035,1749937840238,-326.94941051,0.00022739,4]
[365821036,1749937840249,-460.0,0.00022739,4]
[365821037,1749937840260,-460.0,0.00022739,4]
[365821038,1749937840272,-460.0,0.00022739,4]
[365821039,1749937840283,-460.0,0.00022739,4]
[365821040,1749937840294,-460.0,0.00022739,4]
[365821041,1749937840306,-206.46763862,0.00022739,4]
[365821042,1749937840317,-460.0,0.00022739,4]
[365821043,1749937840328,-460.0,0.00022739,4]
[365821044,1749937840339,-460.0,0.00022739,4]
[365821045,1749937840350,-1319.68,0.00022739,4]
[365821046,1749937840361,-460.0,0.00022739,4]
[365821047,1749937840373,-539.15,0.00022739,4]
[365821048,1749937840384,-460.0,0.00022739,4]
[365821049,1749937840395,-290.0,0.00022739,4]
[365821050,1749937840407,-460.0,0.00022739,4]
[365821051,1749937840418,-460.0,0.00022739,4]
[365821052,1749937840428,-460.0,0.00022739,4]
[365821053,1749937840438,-460.0,0.00022739,4]
[365821054,1749937840447,-1021.97,0.00022739,4]
[365821055,1749937840458,-460.0,0.00022739,4]
[365821056,1749937840468,-2967.96,0.00022739,4]
[365821057,1749937840478,-460.0,0.00022739,4]
[365821058,1749937840488,-1391.78,0.00022739,4]
[365821059,1749937840497,-1078.63,0.00022739,4]
[365821060,1749937840507,-460.0,0.00022739,4]
[365821061,1749937840516,-688.21,0.00022739,4]
[365821062,1749937840527,-220.0,0.00022739,4]
[365821063,1749937840537,-460.0,0.00022739,4]
[365821064,1749937840547,-460.0,0.00022739,4]
[365821065,1749937840557,-460.0,0.00022739,4]
[365821066,1749937840566,-1121.45,0.00022739,4]
[365821067,1749937840577,-1079.19,0.00022739,4]
[365821068,1749937840587,-594.39,0.00022739,4]
[365821069,1749937840597,-869.24,0.00022739,4]
[365821070,1749937840607,-460.0,0.00022739,4]
[365821071,1749937840617,-460.0,0.00022739,4]
[365821072,1749937840628,-954.63,0.00022739,4]
[365821074,1749937840638,-450.44,0.00022739,4]
[365821075,1749937840650,-460.0,0.00022739,4]
[365821076,1749937840661,-749.8,0.00022739,4]
[365821077,1749937840864,-460.0,0.00022739,4]
[365821078,1749937840877,-3389.95,0.00022739,4]
[365821079,1749937840886,-460.0,0.00022739,4]
[365821080,1749937840896,-460.0,0.00022739,4]
[365821081,1749937840906,-340.0,0.00022739,4]
[365821082,1749937840916,-1017.16,0.00022739,4]
[365821083,1749937840925,-460.0,0.00022739,4]
[365821084,1749937840942,-3190.39,0.00022739,4]
[365821085,1749937840956,-502.43,0.00022739,4]
[365821086,1749937840966,-654.17,0.00022739,4]
[365821087,1749937840976,-2615.6,0.00022739,4]
[365821088,1749937840987,-1198.46,0.00022739,4]
[365821089,1749937840997,-901.06,0.00022739,4]
[365821090,1749937841007,-460.0,0.00022739,4]
[365821091,1749937841017,-460.0,0.00022739,4]
[365821092,1749937841028,-460.0,0.00022739,2]
[365821093,1749937841038,-460.0,0.00022739,4]
[365821094,1749937841048,-460.0,0.00022739,4]
[365821095,1749937841059,-460.0,0.00022739,4]
[365821096,1749937841069,-3482.98,0.00022739,4]
[365821097,1749937841081,-1340.88,0.00022739,4]
[365821098,1749937841091,-568.2,0.00022739,4]
[365821099,1749937841101,-460.0,0.00022739,4]
[365821100,1749937841111,-3518.92,0.00022739,4]
[365821101,1749937841121,-460.0,0.00022739,4]
[365821102,1749937841132,-460.0,0.00022739,4]
[365821103,1749937841141,-460.0,0.00022739,4]
[365821104,1749937841152,-862.79,0.00022739,4]
[365821105,1749937841161,-3699.35,0.00022739,4]
[365821106,1749937841171,-460.0,0.00022739,4]
[365821107,1749937841181,-460.0,0.00022739,4]
[365821108,1749937841191,-460.0,0.00022739,4]
[365821109,1749937841200,-1568.66,0.00022739,4]
[365821110,1749937841210,-460.0,0.00022739,4]
[365821111,1749937841220,-708.11,0.00022739,4]
[365821112,1749937841230,-460.0,0.00022739,4]
[365821113,1749937841240,-370.0,0.00022739,4]
[365821114,1749937841249,-620.85,0.00022739,4]
[365821115,1749937841259,-220.0,0.00022739,4]
[365821116,1749937841269,-2385.13,0.00022739,4]
[365821117,1749937841278,-460.0,0.00022739,4]
[365821118,1749937841288,-460.0,0.00022739,4]
[365821119,1749937841298,-568.93,0.00022739,4]
[365821120,1749937841308,-2377.54,0.00022739,4]
[365821121,1749937841318,-552.1,0.00022739,4]
[365821122,1749937841328,-460.0,0.00022739,4]
[365821123,1749937841338,-282.42197335,0.00022781,2]
[365821124,1749937841348,-1056.48400829,0.00022831,8]
[365821125,1749937841358,-1056.48400829,0.00022934,8]
[365821126,1749937841368,-420.0,0.0002296,2]
[365821127,1749937841379,-425.09696969,0.00022961,2]
[365821128,1749937841388,-500.0,0.00023,2]
[365821129,1749937841398,-653.00858147,0.00023002,2]
[365821130,1749937841408,-310.0,0.00023013,4]
[365821131,1749937841418,-460.0,0.00023013,4]
[365821132,1749937841428,-350.74257678,0.00023013,4]
[365821133,1749937841438,-334.85,0.00023013,4]
[365821134,1749937841448,-460.0,0.00023013,4]
[365821135,1749937841458,-460.0,0.00023013,4]
[365821136,1749937841468,-460.0,0.00023013,4]
[365821137,1749937841478,-460.0,0.00023013,4]
[365821138,1749937841488,-460.0,0.00023013,4]
[365821139,1749937841498,-460.0,0.00023013,4]
[365821140,1749937841508,-460.0,0.00023013,4]
[365821141,1749937841518,-160.7707812,0.00023013,4]
[365821142,1749937841528,-460.0,0.00023013,4]
[365821143,1749937841538,-1319.68,0.00023013,4]
[365821144,1749937841548,-460.0,0.00023013,4]
[365821145,1749937841562,-539.15,0.00023013,4]
[365821146,1749937841572,-460.0,0.00023013,4]
[365821147,1749937841583,-460.0,0.00023013,4]
[365821148,1749937841592,-460.0,0.00023013,4]
[365821149,1749937841602,-460.0,0.00023013,4]
[365821150,1749937841612,-460.0,0.00023013,4]
[365821151,1749937841622,-1021.97,0.00023013,4]
[365821152,1749937841631,-460.0,0.00023013,4]
[365821153,1749937841641,-2967.96,0.00023013,4]
[365821154,1749937841655,-460.0,0.00023013,4]
[365821155,1749937841665,-1391.78,0.00023013,4]
[365821156,1749937841675,-1078.63,0.00023013,4]
[365821157,1749937841684,-460.0,0.00023013,4]
[365821158,1749937841695,-688.21,0.00023013,4]
[365821159,1749937841704,-460.0,0.00023013,4]
[365821160,1749937841714,-460.0,0.00023013,4]
[365821161,1749937841725,-460.0,0.00023013,4]
[365821162,1749937841735,-1121.45,0.00023013,4]
[365821163,1749937841745,-1079.19,0.00023013,4]
[365821164,1749937841755,-594.39,0.00023013,4]
[365821165,1749937841764,-869.24,0.00023013,4]
[365821166,1749937841774,-203.60690955,0.00023013,4]
[365821167,1749937841784,-460.0,0.00023013,4]
[365821168,1749937841794,-954.63,0.00023013,4]
[365821169,1749937841804,-460.0,0.00023013,4]
[365821170,1749937841814,-749.8,0.00023013,4]
[365821171,1749937841824,-460.0,0.00023013,4]
[365821172,1749937841835,-3389.95,0.00023013,4]
[365821173,1749937841844,-460.0,0.00023013,4]
[365821174,1749937841854,-460.0,0.00023013,4]
[365821175,1749937841863,-1017.16,0.00023013,4]
[365821176,1749937841873,-460.0,0.00023013,4]
[365821177,1749937841882,-3190.39,0.00023013,4]
[365821178,1749937841892,-502.43,0.00023013,4]
[365821179,1749937841902,-654.17,0.00023013,4]
[365821180,1749937841912,-2615.6,0.00023013,4]
[365821181,1749937841921,-1198.46,0.00023013,4]
[365821182,1749937841931,-901.06,0.00023013,4]
[365821184,1749937841940,-460.0,0.00023013,4]
[365821186,1749937841949,-460.0,0.00023013,4]
[365821187,1749937841959,-460.0,0.00023013,2]
[365821188,1749937841968,-460.0,0.00023013,4]
[365821189,1749937841978,-460.0,0.00023013,4]
[365821190,1749937841987,-460.0,0.00023013,4]
[365821191,1749937841997,-3482.98,0.00023013,4]
[365821192,1749937842006,-1340.88,0.00023013,4]
[365821193,1749937842015,-568.2,0.00023013,4]
[365821194,1749937842026,-460.0,0.00023013,4]
[365821195,1749937842036,-3518.92,0.00023013,4]
[365821196,1749937842045,-460.0,0.00023013,4]
[365821197,1749937842055,-440.0,0.00023013,4]
[365821198,1749937842065,-460.0,0.00023013,4]
[365821199,1749937842074,-862.79,0.00023013,4]
[365821200,1749937842084,-3699.35,0.00023013,4]
[365821201,1749937842094,-310.0,0.00023013,4]
[365821202,1749937842104,-460.0,0.00023013,4]
[365821203,1749937842114,-460.0,0.00023013,4]
[365821204,1749937842123,-1568.66,0.00023013,4]
[365821205,1749937842132,-460.0,0.00023013,4]
[365821206,1749937842142,-708.11,0.00023013,4]
[365821207,1749937842151,-460.0,0.00023013,4]
[365821208,1749937842161,-620.85,0.00023013,4]
[365821209,1749937842171,-2385.13,0.00023013,4]
[365821210,1749937842180,-460.0,0.00023013,4]
[365821211,1749937842190,-460.0,0.00023013,4]
[365821212,1749937842199,-568.93,0.00023013,4]
[365821213,1749937842209,-2377.54,0.00023013,4]
[365821215,1749937842218,-552.1,0.00023013,4]
[365821217,1749937842228,-270.66,0.00023013,4]
[365821218,1749937842237,-168.0,0.00023033,2]
[365821219,1749937842246,-1056.48400829,0.00023038,8]
[365821220,1749937842256,-600.0,0.0002304,2]
[365821221,1749937842266,-159.41069738,0.00023041,2]
[365821222,1749937842275,-494.0,0.00023069,2]
[365821223,1749937842285,-1056.48400829,0.00023141,8]
[365821224,1749937842294,-500.0,0.000232,2]
[365821225,1749937842303,-500.0,0.000232,2]
[365821226,1749937842313,-1056.48400829,0.00023245,8]
[365821227,1749937842323,-1000.0,0.00023268,2]
[365821228,1749937842333,-425.09696969,0.0002327,2]
[365821229,1749937842343,-5000.0,0.00023274,2]
[365821230,1749937842352,-600.0,0.0002328,2]
[365821231,1749937842363,-3978.35,0.00023286,3]
[365821232,1749937842373,-460.0,0.00023287,4]
[365821233,1749937842383,-280.0,0.00023287,4]
[365821234,1749937842394,-460.0,0.00023287,4]
[365821235,1749937842404,-460.0,0.00023287,4]
[365821236,1749937842414,-460.0,0.00023287,4]
[365821237,1749937842423,-460.0,0.00023287,4]
[365821238,1749937842433,-460.0,0.00023287,4]
[365821239,1749937842443,-460.0,0.00023287,4]
[365821240,1749937842453,-200.0,0.00023287,4]
[365821241,1749937842464,-1319.68,0.00023287,4]
[365821242,1749937842474,-460.0,0.00023287,4]
[365821243,1749937842484,-539.15,0.00023287,4]
[365821244,1749937842494,-460.0,0.00023287,4]
[365821245,1749937842504,-460.0,0.00023287,4]
[365821246,1749937842513,-460.0,0.00023287,4]
[365821247,1749937842523,-460.0,0.00023287,4]
[365821248,1749937842533,-460.0,0.00023287,4]
[365821249,1749937842543,-1021.97,0.00023287,4]
[365821250,1749937842553,-460.0,0.00023287,4]
[365821251,1749937842563,-2967.96,0.00023287,4]
[365821252,1749937842573,-460.0,0.00023287,4]
[365821253,1749937842583,-1391.78,0.00023287,4]
[365821254,1749937842593,-1078.63,0.00023287,4]
[365821255,1749937842603,-460.0,0.00023287,4]
[365821256,1749937842613,-688.21,0.00023287,4]
[365821257,1749937842623,-460.0,0.00023287,4]
[365821258,1749937842633,-460.0,0.00023287,4]
[365821259,1749937842642,-460.0,0.00023287,4]
[365821260,1749937842657,-1121.45,0.00023287,4]
[365821261,1749937842666,-1079.19,0.00023287,4]
[365821262,1749937842676,-594.39,0.00023287,4]
[365821263,1749937842686,-869.24,0.00023287,4]
[365821264,1749937842697,-460.0,0.00023287,4]
[365821265,1749937842707,-954.63,0.00023287,4]
[365821266,1749937842717,-460.0,0.00023287,4]
[365821267,1749937842727,-749.8,0.00023287,4]
[365821268,1749937842737,-460.0,0.00023287,4]
[365821269,1749937842747,-3389.95,0.00023287,4]
[365821270,1749937842757,-460.0,0.00023287,4]
[365821271,1749937842767,-460.0,0.00023287,4]
[365821272,1749937842777,-1017.16,0.00023287,4]
[365821273,1749937842787,-460.0,0.00023287,4]
[365821274,1749937842796,-3190.39,0.00023287,4]
[365821275,1749937842806,-502.43,0.00023287,4]
[365821276,1749937842815,-654.17,0.00023287,4]
[365821277,1749937842825,-2615.6,0.00023287,4]
[365821278,1749937842837,-1198.46,0.00023287,4]
[365821279,1749937842846,-901.06,0.00023287,4]
[365821280,1749937842856,-460.0,0.00023287,4]
[365821281,1749937842866,-460.0,0.00023287,4]
[365821283,1749937842876,-460.0,0.00023287,2]
[365821285,1749937842886,-460.0,0.00023287,4]
[365821286,1749937842896,-460.0,0.00023287,4]
[365821287,1749937842906,-460.0,0.00023287,4]
[365821288,1749937842916,-3482.98,0.00023287,4]
[365821289,1749937842934,-1340.88,0.00023287,4]
[365821290,1749937842946,-568.2,0.00023287,4]
[365821291,1749937842956,-330.65,0.00023287,4]
[365821292,1749937842966,-3518.92,0.00023287,4]
[365821293,1749937842976,-460.0,0.00023287,4]
[365821294,1749937842987,-460.0,0.00023287,4]
[365821295,1749937842997,-862.79,0.00023287,4]
[365821296,1749937843007,-3699.35,0.00023287,4]
[365821297,1749937843018,-273.1061871,0.00023287,4]
[365821298,1749937843028,-460.0,0.00023287,4]
[365821300,1749937843038,-1568.66,0.00023287,4]
[365821301,1749937843048,-460.0,0.00023287,4]
[365821302,1749937843057,-708.11,0.00023287,4]
[365821303,1749937843067,-460.0,0.00023287,4]
[365821304,1749937843077,-620.85,0.00023287,4]